bitfinex/quotes_ETHUSD_20240822
["timestamp","ask_amount","ask_price","bid_price","bid_amount"]
[1724334007880,3.80756,2626.4,2625.8,3.9344389]
[1724334008039,5.40202473,2626.4,2625.8,3.9344389]
[1724334008233,5.40202473,2626.4,2625.9,3.8082]
[1724334008234,1.59446473,2626.4,2625.9,3.8082]
[1724334008465,1.59446473,2626.4,2625.8,3.9344389]
[1724334008466,3.80764,2626.3,2625.8,0.1261689]
[1724334009090,2.3707,2626.1,2625.8,0.1261689]
[1724334009649,3.80786,2626.2,2625.8,0.1261689]
[1724334011616,1.59446473,2626.3,2625.8,3.9344489]
[1724334011810,7.87835473,2626.4,2625.8,3.9344489]
[1724334012165,5.40213473,2626.3,2625.8,0.1261689]
[1724334012513,1.59446473,2626.3,2625.8,3.9344889]
[1724334012717,5.40214473,2626.3,2625.8,0.1261689]
[1724334012898,1.59446473,2626.3,2625.8,3.9344889]
[1724334013072,7.87835473,2626.4,2625.8,3.9344889]
[1724334013267,1.59446473,2626.3,2625.9,3.8082]
[1724334013486,2.4763,2626.4,2625.9,0.39343689]
[1724334013487,1.59446473,2626.4,2625.9,0.39343689]
[1724334013694,3.80729,2626.6,2626.1,3.80778]
[1724334013695,1.59446473,2626.6,2626.1,3.80778]
[1724334013893,1.59446473,2626.6,2626.1,3.80782]
[1724334014185,1.59446473,2626.6,2626.2,3.80767]
[1724334014513,1.59446473,2626.7,2626.2,3.80767]
[1724334014666,1.59446473,2626.7,2626.1,3.80792]
[1724334014863,1.59446473,2626.6,2626.2,3.80776]
[1724334015101,1.59446473,2626.7,2626.3,3.80755]
[1724334015354,4.63446473,2626.8,2626.4,3.80747]
[1724334015483,1.59446473,2626.8,2626.4,3.80739]
[1724334015824,1.59446473,2626.8,2626.5,3.8073]
[1724334015983,1.59446473,2626.9,2626.4,3.80739]
[1724334016185,9.59752374,2627.0,2626.4,3.80739]
[1724334016186,1.59446473,2626.8,2626.4,3.80739]
[1724334016616,1.59446473,2626.9,2626.5,3.80724]
[1724334016807,1.59446473,2626.8,2626.4,3.80739]
[1724334017112,1.59446473,2626.8,2626.2,3.80763]
[1724334017417,1.59446473,2626.8,2626.4,3.80742]
[1724334017569,3.80743,2626.5,2626.0,3.80798]
[1724334017770,5.40189473,2626.5,2626.0,7.61596]
[1724334018084,1.59446473,2626.6,2626.2,3.80769]
[1724334018285,1.59446473,2626.7,2626.2,3.80769]
[1724334018716,1.59446473,2626.6,2626.2,3.80769]
[1724334019539,1.59446473,2626.7,2626.4,3.80739]
[1724334019685,1.59446473,2626.8,2626.4,3.80739]
[1724334019896,1.59446473,2626.8,2626.5,3.80723]
[1724334020203,1.59446473,2626.9,2626.5,7.61445]
[1724334020385,5.40131473,2626.9,2626.4,6.11421]
[1724334020588,5.40131473,2626.9,2626.3,3.80752]
[1724334020589,1.59446473,2626.8,2626.3,7.61508]
[1724334020824,1.59446473,2626.8,2626.4,3.80747]
[1724334021125,1.59446473,2626.9,2626.5,3.80731]
[1724334021272,5.40125473,2626.9,2626.3,7.61504]
[1724334021595,3.80723,2626.6,2626.1,3.80785]
[1724334021790,1.59446473,2626.7,2625.8,5.4922689]
[1724334022122,1.59446473,2626.7,2626.4,7.61484]
[1724334022328,1.59446473,2626.8,2626.4,3.80742]
[1724334022482,1.98518051,2626.9,2626.4,3.80742]
[1724334022483,1.59446473,2626.9,2626.4,3.80742]
[1724334022678,1.59446473,2626.8,2626.6,3.80718]
[1724334023190,1.59446473,2626.9,2626.6,3.80712]
[1724334023918,1.59446473,2627.0,2626.9,3.80676]
[1724334024232,1.59446473,2627.0,2626.5,3.80725]
[1724334024435,1.58934044,2626.9,2626.4,3.8074]
[1724334024581,1.58934044,2626.8,2626.4,3.8074]
[1724334024773,1.58934044,2626.8,2626.5,3.80734]
[1724334025054,1.58934044,2626.7,2626.3,3.80754]
[1724334025189,1.58934044,2626.7,2626.4,3.80747]
[1724334025523,1.58934044,2626.8,2626.6,3.80718]
[1724334025728,1.98676105,2626.9,2626.6,3.80712]
[1724334025729,1.58934044,2626.9,2626.6,3.80712]
[1724334026083,1.58934044,2626.8,2626.6,3.80712]
[1724334026592,1.58934044,2626.9,2626.6,3.80712]
[1724334026813,1.58934044,2626.9,2626.8,3.80691]
[1724334027046,1.58934044,2627.1,2626.8,3.80691]
[1724334027355,1.58934044,2627.1,2626.8,3.80682]
[1724334027508,1.58934044,2627.2,2627.0,3.80662]
[1724334027689,1.58934044,2627.2,2626.8,3.80682]
[1724334028131,1.58934044,2627.3,2627.0,3.80654]
[1724334028339,1.58934044,2627.3,2627.2,7.61266]
[1724334028538,1.58934044,2627.3,2627.1,2.2617]
[1724334028539,1.58934044,2627.6,2627.4,3.80604]
[1724334028839,1.58934044,2627.7,2627.4,3.80604]
[1724334029136,1.58934044,2627.6,2627.5,3.80589]
[1724334029341,1.58934044,2627.7,2627.6,3.80575]
[1724334029536,1.58934044,2627.9,2627.6,3.80575]
[1724334030092,1.58934044,2628.0,2627.8,3.80546]
[1724334030298,1.58934044,2628.1,2627.9,3.80531]
[1724334030633,1.58934044,2628.4,2628.0,3.80517]
[1724334030936,1.58934044,2628.4,2628.0,3.80504]
[1724334031145,1.58934044,2628.4,2628.2,3.80474]
[1724334031438,1.58934044,2628.6,2628.2,3.80474]
[1724334031749,1.58934044,2628.7,2628.3,3.88069642]
[1724334031893,3.80388,2628.9,2628.3,1.00242364]
[1724334031894,1.58934044,2628.9,2628.3,1.00242364]
[1724334032087,1.58934044,2628.9,2628.1,2.3388]
[1724334032088,1.58934044,2628.9,2628.4,3.80453]
[1724334032324,1.58934044,2628.9,2628.2,3.8048]
[1724334032325,5.39338044,2628.8,2628.2,3.80479]
[1724334032648,5.39338044,2628.8,2628.0,4.2617161]
[1724334032649,3.80427,2628.7,2628.0,3.80507]
[1724334032792,3.80427,2628.7,2628.1,3.80494]
[1724334033008,6.28915,2628.8,2628.2,3.80488]
[1724334033271,6.28915,2628.8,2628.2,7.60968]
[1724334033549,7.95450983,2628.8,2628.1,3.805]
[1724334033689,7.95450983,2628.8,2628.0,3.80517]
[1724334033690,3.80441,2628.6,2628.0,3.80517]
[1724334033893,0.07601939,2628.7,2628.0,3.80508]
[1724334033894,1.58934044,2628.7,2628.0,3.80508]
[1724334034145,1.66535983,2628.7,2628.0,3.80508]
[1724334034345,3.80432,2628.6,2628.0,7.61016]
[1724334034637,6.28916,2628.8,2628.1,3.80492]
[1724334034638,11.68264044,2628.8,2628.1,3.80492]
[1724334034841,3.80417,2628.7,2628.0,7.61017]
[1724334035341,3.80417,2628.7,2628.1,3.80499]
[1724334036296,6.28916,2628.8,2628.2,3.8048]
[1724334036492,6.28916,2628.8,2628.2,3.80479]
[1724334036751,4.20158665,2629.0,2628.4,3.80459]
[1724334036913,0.39778665,2629.0,2628.4,3.80459]
[1724334037114,3.80401,2628.8,2628.2,3.80481]
[1724334037311,3.80401,2628.8,2628.1,3.80493]
[1724334037312,3.80406,2628.8,2628.1,3.80493]
[1724334037507,4.65895735,2629.2,2628.2,3.80474]
[1724334037508,3.87980939,2629.0,2628.2,3.80474]
[1724334037736,2.2793,2628.9,2628.1,3.80501]
[1724334038157,3.80411,2628.8,2628.3,3.80472]
[1724334038459,3.80411,2628.8,2628.3,3.80473]
[1724334038613,3.80378,2629.0,2628.3,3.80466]
[1724334038968,6.15511,2629.2,2628.6,3.80428]
[1724334039306,3.80364,2629.1,2628.4,7.60904]
[1724334039414,6.15511,2629.2,2628.6,3.80423]
[1724334040170,6.15511,2629.2,2628.0,2.3338]
[1724334040171,2.3516,2629.2,2628.0,2.3338]
[1724334040312,3.80409,2628.8,2628.2,3.80479]
[1724334040515,3.8039,2628.9,2628.3,3.8047]
[1724334040713,3.8039,2628.9,2628.4,3.80457]
[1724334041138,3.87983939,2629.0,2628.4,3.80457]
[1724334041139,3.80382,2629.0,2628.4,3.8045]
[1724334041544,3.80396,2628.9,2628.4,3.8045]
[1724334041989,7.60766,2629.0,2628.4,3.8045]
[1724334042277,3.80396,2628.9,2628.4,3.8045]
[1724334042657,3.80403,2628.8,2628.3,3.80471]
[1724334042992,3.80403,2628.8,2628.0,3.717614]
[1724334042993,2.4923,2628.7,2628.1,3.80501]
[1724334043141,2.4923,2628.7,2627.3,4.699]
[1724334043142,3.805,2628.2,2627.6,3.80563]
[1724334043340,3.80483,2628.3,2627.8,3.80536]
[1724334043561,3.80453,2628.5,2627.9,3.80528]
[1724334043562,7.60906,2628.5,2627.9,3.80528]
[1724334043841,2.4923,2628.7,2628.1,3.80503]
[1724334044074,2.4923,2628.7,2628.1,3.80493]
[1724334044075,6.29646,2628.7,2628.1,3.80493]
[1724334044242,3.80396,2628.9,2628.2,3.80479]
[1724334044460,7.60792,2628.9,2628.3,3.8046]
[1724334044673,3.80396,2628.9,2628.3,3.8046]
[1724334045640,2.3755,2629.0,2628.6,3.80428]
[1724334045926,0.39778178,2629.2,2628.7,3.80414]
[1724334046076,2.4482,2629.3,2628.8,3.804]
[1724334046272,3.80309,2629.5,2628.9,3.80386]
[1724334046578,3.80309,2629.5,2628.9,3.80377]
[1724334046767,3.80309,2629.5,2628.9,7.60754]
[1724334047097,3.80309,2629.5,2628.9,3.80377]
[1724334047486,7.6062,2629.5,2628.9,3.80377]
[1724334047683,3.80317,2629.4,2628.7,7.60815]
[1724334047921,3.80317,2629.4,2628.7,3.80405]
[1724334048613,3.80317,2629.4,2628.8,3.804]
[1724334048913,3.80309,2629.5,2628.9,3.80386]
[1724334049353,7.60621,2629.5,2628.9,3.80386]
[1724334049517,3.80309,2629.5,2628.9,3.80386]
[1724334050128,3.80309,2629.5,2629.0,3.80371]
[1724334050414,6.25108,2629.6,2629.0,3.80371]
[1724334050972,2.4482,2629.6,2629.0,3.80363]
[1724334051165,2.4482,2629.6,2628.6,0.380428]
[1724334051166,3.80304,2629.5,2628.8,3.8039]
[1724334051414,6.25108,2629.6,2629.0,3.80365]
[1724334052089,2.4482,2629.6,2629.1,3.80358]
[1724334052377,3.80287,2629.6,2629.0,0.760743]
[1724334052576,3.80287,2629.6,2629.0,3.80372]
[1724334053085,5.36,2629.9,2628.9,3.80374]
[1724334053086,3.80301,2629.5,2628.9,3.80374]
[1724334053287,3.80301,2629.5,2628.7,7.60817]
[1724334053288,3.80329,2629.3,2628.7,7.60817]
[1724334053516,3.80368,2629.1,2628.5,3.80436]
[1724334053823,3.87938939,2629.3,2628.5,3.80436]
[1724334053969,3.87938939,2629.3,2628.6,3.80419]
[1724334053970,3.80337,2629.3,2628.6,3.80419]
[1724334054398,3.80359,2629.1,2628.5,7.60871]
[1724334054610,7.60677,2629.3,2628.6,3.80424]
[1724334054918,3.80343,2629.2,2628.6,3.80424]
[1724334055240,3.80343,2629.2,2628.1,4.185463]
[1724334055241,2.3139,2628.8,2628.3,3.80465]
[1724334055521,6.11801,2628.8,2628.1,3.80497]
[1724334056022,3.80441,2628.6,2627.9,3.8052]
[1724334056817,3.80441,2628.6,2628.0,3.80516]
[1724334057036,2.3139,2628.8,2628.2,3.80475]
[1724334057229,2.3139,2628.8,2628.3,3.80471]
[1724334058174,6.11794,2628.8,2628.1,3.80492]
[1724334058383,3.88018939,2628.7,2628.0,3.80511]
[1724334058579,3.88018939,2628.7,2628.1,3.80501]
[1724334058779,3.80417,2628.7,2628.1,3.80501]
[1724334059178,2.3139,2628.8,2628.1,4.627107]
[1724334059678,2.3139,2628.8,2628.3,3.80469]
[1724334059897,0.07601939,2628.7,2628.0,3.80515]
[1724334060110,7.60851,2628.7,2628.0,3.80515]
[1724334060323,6.11795,2628.8,2628.0,3.80508]
[1724334060526,6.11802,2628.8,2628.2,3.80479]
[1724334060730,2.3139,2628.8,2627.8,3.8054]
[1724334061045,4.699,2629.0,2627.6,6.80564]
[1724334061046,3.80437,2628.6,2627.6,6.80564]
[1724334061233,3.80468,2628.4,2627.8,3.80534]
[1724334061683,3.80468,2628.4,2627.8,7.61071]
[1724334061878,3.80437,2628.6,2627.9,3.80523]
[1724334062081,3.80437,2628.6,2628.0,3.80515]
[1724334062279,2.4953,2628.7,2628.1,3.80501]
[1724334062280,6.2995,2628.7,2628.1,3.80501]
[1724334062532,2.4953,2628.7,2628.2,7.60964]
[1724334062731,2.4953,2628.7,2628.2,3.80479]
[1724334063177,2.4953,2628.7,2628.4,3.80456]
[1724334063380,6.22915,2629.0,2628.4,3.80456]
[1724334063831,6.22915,2629.0,2628.4,3.8045]
[1724334064045,2.4254,2629.0,2628.4,0.38045]
[1724334064184,4.20129507,2629.2,2628.4,0.38045]
[1724334064185,4.20129507,2629.2,2628.7,3.80414]
[1724334064383,2.3104,2629.3,2628.7,3.80414]
[1724334064384,6.1137,2629.3,2628.7,3.80414]
[1724334064837,3.80352,2629.2,2628.6,3.80417]
[1724334065001,2.3104,2629.3,2628.9,3.80386]
[1724334065899,6.61289,2629.6,2628.9,4.184246]
[1724334066116,2.3366,2629.7,2629.1,3.80347]
[1724334066446,2.3366,2629.7,2629.2,3.80341]
[1724334067235,3.8026,2629.8,2629.2,3.80341]
[1724334067431,3.80235,2630.0,2629.5,3.80299]
[1724334067432,2.3618,2630.0,2629.5,3.80299]
[1724334067929,0.59658421,2630.1,2629.5,3.80299]
[1724334068481,0.59658421,2630.1,2629.4,2.4951]
[1724334068686,3.80228,2630.0,2629.4,6.29815]
[1724334068984,3.80228,2630.0,2629.5,3.80298]
[1724334069238,0.59658421,2630.1,2629.5,3.80298]
[1724334069385,6.84208,2630.2,2629.5,3.80298]
[1724334069585,3.80224,2630.1,2629.5,3.80298]
[1724334069787,3.80224,2630.1,2629.5,4.813106]
[1724334069981,3.04,2630.2,2629.6,3.80285]
[1724334070197,3.04,2630.2,2629.5,4.813036]
[1724334070405,3.04,2630.2,2629.7,3.8027]
[1724334072304,3.04,2630.2,2629.5,4.813036]
[1724334072505,3.80213,2630.1,2629.5,3.80291]
[1724334072819,3.80247,2629.9,2629.3,3.80318]
[1724334073035,2.42751939,2629.8,2629.1,3.0]
[1724334073336,3.87872939,2629.7,2629.0,3.80368]
[1724334073545,3.80271,2629.7,2629.1,3.80358]
[1724334073702,3.80289,2629.6,2629.0,7.60728]
[1724334074132,2.3515,2629.8,2629.0,7.60728]
[1724334074133,6.15414,2629.8,2629.1,3.80345]
[1724334074460,6.15414,2629.8,2628.8,3.80395]
[1724334074461,3.80298,2629.6,2628.8,3.80395]
[1724334074602,3.80298,2629.6,2628.9,3.0]
[1724334074603,0.07601939,2629.5,2628.9,3.0]
[1724334074801,0.07601939,2629.5,2628.8,3.80395]
[1724334074802,3.80316,2629.4,2628.8,7.60788]
[1724334075105,3.80298,2629.6,2628.9,3.80381]
[1724334075336,3.80309,2629.5,2628.9,3.80381]
[1724334075556,3.80309,2629.5,2628.8,3.80393]
[1724334075557,3.80315,2629.4,2628.8,3.80393]
[1724334075859,7.6061,2629.5,2628.8,7.6079]
[1724334076050,3.80301,2629.5,2628.9,3.80387]
[1724334076352,3.80331,2629.3,2628.8,3.80389]
[1724334076735,3.80345,2629.2,2628.6,3.80421]
[1724334076910,0.07601939,2629.3,2628.7,3.80413]
[1724334077108,0.07601939,2629.3,2628.8,3.80397]
[1724334077405,3.87941939,2629.3,2628.6,8.228861]
[1724334077653,3.80373,2629.0,2628.2,3.8048]
[1724334077810,3.8041,2628.8,2628.2,7.60958]
[1724334078007,3.80379,2629.0,2628.2,3.80478]
[1724334078233,3.80379,2629.0,2628.4,3.80451]
[1724334078752,5.46914983,2629.0,2628.4,3.80451]
[1724334078958,3.80379,2629.0,2628.4,3.80451]
[1724334079123,5.39293044,2629.1,2628.4,4.565444]
[1724334079460,1.58934044,2629.3,2628.7,7.60811]
[1724334079664,1.58934044,2629.3,2628.7,3.80403]
[1724334079818,8.82715025,2629.4,2628.7,3.80403]
[1724334079819,8.43252044,2629.4,2628.7,3.80403]
[1724334080012,4.62934044,2629.4,2628.9,3.80377]
[1724334080421,3.04,2629.4,2629.1,3.80349]
[1724334080604,1.58934044,2629.6,2629.1,3.80349]
[1724334080805,1.58934044,2629.6,2629.2,3.80342]
[1724334081113,5.78669025,2629.7,2629.3,3.80323]
[1724334081114,1.58934044,2629.7,2629.3,3.80323]
[1724334081448,1.58934044,2629.8,2629.3,3.80323]
[1724334081810,5.78648025,2629.9,2629.3,3.80323]
[1724334081811,5.39185044,2629.9,2629.3,3.80323]
[1724334082018,1.58934044,2629.8,2629.3,3.80323]
[1724334082202,5.39185044,2629.9,2629.3,3.80323]
[1724334082407,1.58934044,2629.9,2629.3,3.80318]
[1724334082610,1.58934044,2630.1,2629.5,3.80287]
[1724334082840,9.19354044,2630.2,2629.5,3.80287]
[1724334083044,1.58934044,2630.1,2629.5,3.80287]
[1724334083241,1.58934044,2630.1,2629.3,4.183538]
[1724334083456,3.80251,2629.9,2629.3,4.183538]
[1724334083654,5.39174044,2630.0,2629.3,7.986728]
[1724334083857,3.8024,2630.0,2629.4,3.80305]
[1724334084157,3.8024,2630.0,2629.5,3.80299]
[1724334084357,5.39140044,2630.2,2629.6,3.80285]
[1724334084560,5.39140044,2630.2,2629.6,6.12455]
[1724334084863,5.39140044,2630.2,2629.6,2.3217]
[1724334085157,5.39140044,2630.2,2629.6,6.12453]
[1724334085364,9.19351044,2630.2,2629.6,2.3217]
[1724334085669,1.58934044,2630.3,2629.8,3.80243]
[1724334085813,2.18566687,2630.4,2630.0,3.80225]
[1724334087176,3.8016,2630.5,2630.0,3.80218]
[1724334087495,3.80147,2630.6,2629.6,3.01402458]
[1724334087496,3.80208,2630.2,2629.6,6.12442]
[1724334087631,3.80197,2630.3,2629.6,6.85621205]
[1724334088185,3.8023,2630.0,2629.4,6.80303]
[1724334088474,3.80228,2630.0,2629.5,3.80298]
[1724334088682,6.14838,2630.2,2629.6,3.80284]
[1724334088985,6.22439939,2630.2,2629.6,3.80284]
[1724334089159,6.22439939,2630.2,2629.4,3.80303]
[1724334089361,5.39111044,2630.4,2629.7,6.27861]
[1724334089561,5.39111044,2630.4,2629.8,3.80248]
[1724334089885,1.58934044,2630.4,2629.7,3.80261]
[1724334090031,3.80198,2630.3,2629.7,3.80261]
[1724334090437,3.80198,2630.3,2629.7,4.2209013]
[1724334090783,3.80193,2630.3,2629.7,3.80261]
[1724334091005,3.80194,2630.3,2629.7,3.80262]
[1724334091148,3.80194,2630.3,2629.6,3.80285]
[1724334091340,3.80179,2630.4,2629.8,3.80253]
[1724334091587,3.80179,2630.4,2629.9,3.80242]
[1724334091956,3.80179,2630.4,2629.8,7.6051]
[1724334092159,7.66273044,2630.5,2629.9,3.8024]
[1724334092160,6.07339,2630.5,2629.9,3.8024]
[1724334092494,3.80171,2630.4,2629.9,3.8024]
[1724334092657,3.80186,2630.3,2629.8,3.80255]
[1724334093247,3.80186,2630.3,2629.8,3.80249]
[1724334093659,3.8017,2630.4,2629.8,3.80245]
[1724334094677,3.80184,2630.3,2629.8,3.80245]
[1724334095063,7.60379,2630.3,2629.8,3.80245]
[1724334095266,3.80184,2630.3,2629.8,3.80245]
[1724334095463,0.07601939,2630.2,2629.3,3.80328]
[1724334095784,1.58934044,2630.5,2629.3,3.80328]
[1724334095785,2.4355,2630.0,2629.6,3.80284]
[1724334095967,3.80222,2630.1,2629.6,3.80284]
[1724334096293,3.80222,2630.1,2629.6,3.80278]
[1724334096651,3.80222,2630.1,2629.6,7.60555]
[1724334096867,3.80221,2630.1,2629.6,7.60555]
[1724334097068,3.80221,2630.1,2629.6,7.60553]
[1724334097269,6.61564643,2630.3,2629.6,7.60553]
[1724334097270,4.19954643,2630.3,2629.6,6.813913]
[1724334097468,3.80206,2630.2,2629.7,3.80262]
[1724334098298,3.80171,2630.4,2629.6,6.05336]
[1724334098299,3.80184,2630.3,2629.8,3.80254]
[1724334099193,3.80199,2630.2,2629.8,3.80254]
[1724334100001,7.70676044,2630.6,2629.8,3.80249]
[1724334100204,7.70676044,2630.6,2630.1,3.80206]
[1724334100374,6.11742,2630.6,2630.1,3.80206]
[1724334101054,9.91892,2630.6,2630.1,3.80206]
[1724334101369,3.80156,2630.5,2630.1,3.80206]
[1724334101704,3.80181,2630.4,2629.8,3.80246]
[1724334102468,3.80181,2630.4,2629.8,7.60489]
[1724334102667,3.80178,2630.4,2629.8,4.787979]
[1724334103200,3.80178,2630.4,2629.9,3.80234]
[1724334104082,3.80178,2630.4,2629.8,4.787979]
[1724334104083,3.80184,2630.3,2629.8,3.80243]
[1724334104283,3.80221,2630.1,2629.6,3.80284]
[1724334104666,7.60447,2630.1,2629.6,3.80284]
[1724334104854,3.80221,2630.1,2629.6,3.80284]
[1724334105258,3.80244,2629.9,2629.2,3.80334]
[1724334105593,0.07601939,2629.8,2629.2,3.80334]
[1724334105793,3.80258,2629.8,2629.3,3.80325]
[1724334106359,3.80272,2629.7,2629.2,3.80334]
[1724334106769,7.60508,2629.9,2629.2,3.80334]
[1724334107117,3.80252,2629.9,2629.3,3.8032]
[1724334107708,3.80259,2629.8,2629.3,3.8032]
[1724334108807,1.66535983,2629.9,2629.3,3.8032]
[1724334108971,1.66535983,2629.9,2629.1,3.0]
[1724334108972,5.46785983,2629.9,2629.4,3.80312]
[1724334109172,1.58934044,2629.8,2629.4,3.80312]
[1724334109725,1.58934044,2629.9,2629.6,3.80278]
[1724334109918,1.58934044,2630.0,2629.6,3.80278]
[1724334110608,1.58934044,2630.0,2629.4,0.760646]
[1724334110609,1.58934044,2630.1,2629.4,0.760646]
[1724334110815,1.98754469,2630.2,2630.0,3.80228]
[1724334110816,1.58934044,2630.2,2630.0,3.80228]
[1724334110954,1.58934044,2630.3,2630.0,3.80228]
[1724334111416,9.22641363,2630.7,2630.2,3.80199]
[1724334111417,1.58934044,2630.5,2630.2,3.80199]
[1724334111714,1.58934044,2630.8,2630.7,3.80126]
[1724334112015,1.98754469,2631.0,2630.7,3.80117]
[1724334112016,1.58934044,2631.0,2630.7,3.80117]
[1724334112159,1.58934044,2631.2,2630.8,3.80101]
[1724334112354,5.38990044,2631.2,2630.5,3.80146]
[1724334112560,1.58934044,2631.0,2630.5,0.7983459]
[1724334112796,1.58934044,2631.0,2630.5,4.5998059]
[1724334113414,5.39012044,2631.1,2630.5,4.5998059]
[1724334113622,9.19093044,2631.1,2630.5,4.5998059]
[1724334113787,1.58934044,2631.0,2630.5,3.80146]
[1724334114192,1.58934044,2631.1,2630.6,3.80139]
[1724334114686,1.58934044,2631.0,2630.6,3.80139]
[1724334114887,1.58934044,2631.1,2630.6,3.80139]
[1724334115206,1.58934044,2631.1,2630.3,4.181929]
[1724334115207,3.80092,2631.0,2630.3,4.181929]
[1724334115375,5.39026044,2631.0,2630.3,7.60346]
[1724334115577,5.39026044,2631.0,2630.3,3.80173]
[1724334115830,1.58934044,2630.9,2630.3,7.60347]
[1724334116121,5.78846469,2631.0,2630.3,3.80173]
[1724334116122,3.87693939,2631.0,2630.3,3.80173]
[1724334116325,5.46627983,2631.0,2630.3,3.80173]
[1724334116524,3.80102,2630.9,2630.3,3.80173]
[1724334116833,5.39036044,2630.9,2630.3,7.60347]
[1724334117119,0.07601939,2630.8,2630.1,3.0]
[1724334117429,0.07601939,2630.8,2629.9,6.06757]
[1724334117430,5.39067044,2630.7,2630.0,3.80224]
[1724334117725,5.39067044,2630.7,2629.9,6.06757]
[1724334117726,5.46668983,2630.7,2629.9,3.80234]
[1724334118320,3.80158,2630.5,2629.9,7.60467]
[1724334118638,0.07601939,2630.4,2629.7,3.80262]
[1724334118923,1.58934044,2630.7,2629.9,3.80239]
[1724334118924,3.80163,2630.5,2629.9,3.80239]
[1724334119125,2.359,2630.6,2630.1,3.80212]
[1724334119280,2.359,2630.6,2629.9,3.80239]
[1724334119281,6.1605,2630.6,2630.0,3.80226]
[1724334119876,2.359,2630.6,2630.1,3.80209]
[1724334120178,2.359,2630.6,2629.7,0.914512]
[1724334120179,6.1605,2630.6,2630.0,3.80224]
[1724334120388,6.1605,2630.6,2630.1,3.80213]
[1724334120853,6.1605,2630.6,2629.9,7.60458]
[1724334121042,3.80156,2630.5,2630.0,3.80227]
[1724334123689,2.4528,2630.1,2629.0,6.07615]
[1724334123940,3.80324,2629.4,2628.6,2.2725]
[1724334124241,3.80324,2629.4,2628.7,0.22725]
[1724334124534,3.80324,2629.4,2628.8,3.804]
[1724334124774,7.84505044,2629.6,2628.9,3.80386]
[1724334124905,3.87906939,2629.5,2628.8,3.804]
[1724334125238,3.8032,2629.4,2628.8,3.804]
[1724334125731,3.8032,2629.4,2628.6,3.80424]
[1724334125732,3.80344,2629.2,2628.6,3.80424]
[1724334125885,3.80344,2629.2,2628.6,7.60842]
[1724334126087,3.80344,2629.2,2628.7,3.80414]
[1724334126293,1.58934044,2629.3,2628.7,3.80414]
[1724334126591,1.58934044,2629.3,2628.6,3.80418]
[1724334126592,1.58934044,2629.3,2628.8,3.80398]
[1724334126787,1.58934044,2629.3,2628.9,3.80386]
[1724334127224,6.25571,2629.6,2628.8,3.80398]
[1724334127225,3.80317,2629.4,2628.8,3.80398]
[1724334129227,10.05869,2629.6,2628.8,4.564733]
[1724334129400,2.4528,2629.6,2628.8,3.138023]
[1724334129588,3.80267,2629.8,2629.1,3.80349]
[1724334130186,3.80267,2629.8,2629.0,3.80358]
[1724334130385,3.80322,2629.4,2628.7,3.80403]
[1724334130631,3.80322,2629.4,2628.7,4.418303]
[1724334130791,3.80322,2629.4,2628.8,3.80393]
[1724334131419,3.80332,2629.3,2628.7,4.418293]
[1724334131631,6.18762,2629.4,2628.7,4.418293]
[1724334131937,6.18762,2629.4,2628.8,3.80393]
[1724334132350,3.80293,2629.6,2628.9,3.80377]
[1724334132687,3.80293,2629.6,2629.0,3.80369]
[1724334133193,3.80293,2629.6,2628.9,3.80377]
[1724334133194,3.80293,2629.6,2629.1,3.80356]
[1724334133394,3.80293,2629.6,2629.1,3.8035]
[1724334134230,3.80293,2629.6,2628.9,3.80383]
[1724334134392,3.80293,2629.6,2629.0,3.8037]
[1724334135792,7.60588,2629.6,2629.0,3.8037]
[1724334136077,3.80293,2629.6,2629.0,3.8037]
[1724334136264,3.80293,2629.6,2628.9,3.80378]
[1724334136400,3.80316,2629.4,2628.9,7.60756]
[1724334136602,3.80316,2629.4,2628.9,3.80378]
[1724334136869,3.80316,2629.4,2628.9,7.60757]
[1724334137368,3.80293,2629.6,2628.5,6.1431]
[1724334137369,3.80345,2629.2,2628.7,3.80407]
[1724334137809,6.12895,2629.2,2628.7,3.80407]
[1724334138010,2.3255,2629.2,2628.7,3.80407]
[1724334138197,2.3255,2629.2,2628.8,3.804]
[1724334138600,2.3255,2629.2,2628.5,6.14304]
[1724334138792,2.3255,2629.2,2628.7,3.80407]
[1724334138995,2.3255,2629.2,2628.7,7.60815]
[1724334139199,2.3255,2629.2,2628.7,3.80407]
[1724334139393,0.07601939,2629.1,2628.3,3.80468]
[1724334139629,3.80401,2628.9,2628.3,7.60934]
[1724334139841,3.80381,2629.0,2628.3,4.810134]
[1724334140415,3.80362,2629.1,2628.5,3.80443]
[1724334141057,3.80374,2629.0,2628.5,3.80443]
[1724334141272,3.80374,2629.0,2628.3,3.80463]
[1724334141436,3.80362,2629.1,2628.4,3.80458]
[1724334141619,3.80362,2629.1,2628.5,3.80443]
[1724334141962,3.80373,2629.0,2628.4,0.760921]
[1724334142262,3.80362,2629.1,2628.4,0.760921]
[1724334142263,3.80362,2629.1,2628.4,4.565431]
[1724334142430,3.80374,2629.0,2628.4,4.565431]
[1724334142921,3.80362,2629.1,2628.4,4.565431]
[1724334143116,3.80362,2629.1,2628.5,3.80443]
[1724334143677,5.39410258,2629.3,2628.7,3.80416]
[1724334143888,3.80335,2629.3,2628.7,3.80416]
[1724334144633,3.80344,2629.2,2628.5,7.60871]
[1724334144877,3.80344,2629.2,2628.5,3.80433]
[1724334145079,3.80344,2629.2,2628.6,3.80422]
[1724334145244,3.80344,2629.2,2628.7,0.760855]
[1724334146348,3.80344,2629.2,2628.5,3.80433]
[1724334146349,3.80344,2629.2,2628.5,7.60868]
[1724334146550,3.80344,2629.2,2628.5,3.80433]
[1724334146799,3.80344,2629.2,2628.6,3.80421]
[1724334147102,3.80344,2629.2,2628.5,3.80433]
[1724334147301,3.80344,2629.2,2628.6,3.80418]
[1724334147467,7.60701,2629.2,2628.6,0.760851]